bitfinex/quotes_SOLUSD_20250902
["timestamp","ask_amount","ask_price","bid_price","bid_amount"]
[1756835054436,40.18,204.99,204.98,12.09303007]
[1756835055442,45.05828674,204.99,204.98,12.09303007]
[1756835056342,45.05828674,204.99,204.97,12.09303007]
[1756835057863,40.18,204.99,204.96,12.09303008]
[1756835058172,40.72,204.99,204.96,1e-08]
[1756835058373,12.63303007,204.98,204.96,1e-08]
[1756835058658,12.09303007,204.98,204.96,1e-08]
[1756835059041,12.63303007,204.98,204.96,1e-08]
[1756835059366,16.97179281,204.97,204.96,1e-08]
[1756835059745,4.87876274,204.97,204.96,1e-08]
[1756835059969,40.18,204.99,204.96,1e-08]
[1756835059970,0.06,204.99,204.96,1e-08]
[1756835060141,40.1,204.98,204.96,12.77303008]
[1756835060572,0.06,204.99,204.97,12.09303007]
[1756835060745,0.06,204.99,204.98,12.09303007]
[1756835060938,40.16,204.99,204.98,12.09303007]
[1756835061138,0.06,204.99,204.98,12.09303007]
[1756835061337,40.16,204.99,204.98,12.09303007]
[1756835061541,40.16,204.99,204.97,12.09303007]
[1756835061757,40.16,204.99,204.96,13.59559402]
[1756835061971,45.03835809,204.99,204.96,26.36862409]
[1756835062369,45.03835809,204.99,204.96,14.27559402]
[1756835062570,45.03835809,204.99,204.97,12.09303007]
[1756835062753,45.03835809,204.99,204.96,14.27559402]
[1756835062957,45.03835809,204.99,204.97,12.09303007]
[1756835063150,45.03835809,204.99,204.96,25.68862409]
[1756835063545,40.16,204.99,204.97,12.77303007]
[1756835063860,0.06,204.99,204.98,12.09303007]
[1756835064056,40.16,204.99,204.98,12.77303007]
[1756835064457,0.06,204.99,204.98,26.51078565]
[1756835064664,0.06,204.99,204.98,110.02729633]
[1756835064840,0.06,204.99,204.98,97.93426626]
[1756835065042,0.06,204.99,204.98,110.02729633]
[1756835065565,0.06,204.99,204.98,114.90582106]
[1756835067172,0.06,204.99,204.98,107.59363199]
[1756835067370,0.06,204.99,204.98,119.68666206]
[1756835067562,0.06,205.02,205.01,39.59559401]
[1756835067764,0.06,205.04,205.02,14.02207872]
[1756835067947,0.06,205.04,205.03,29.64729633]
[1756835068266,0.06,205.04,205.03,30.81502983]
[1756835068787,0.06,205.09,205.07,39.59559401]
[1756835069068,0.06,205.09,205.08,26.11510879]
[1756835069368,0.06,205.09,205.08,26.79510879]
[1756835069568,0.06,205.09,205.08,26.51078565]
[1756835069772,0.06,205.09,205.08,26.79510879]
[1756835070077,0.06,205.09,205.08,31.67125468]
[1756835070669,0.06,205.09,205.08,26.79510879]
[1756835070853,0.06,205.09,205.08,31.67125468]
[1756835071254,0.06,205.09,205.08,26.79510879]
[1756835072373,0.06,205.09,205.08,14.02207872]
[1756835072569,0.06,205.09,205.08,25.68862408]
[1756835073189,0.06,205.09,205.07,12.09303007]
[1756835073361,0.06,205.09,205.07,13.59559401]
[1756835074574,48.62191709,205.08,205.03,13.59559401]
[1756835074779,8.54191709,205.07,205.03,13.59559401]
[1756835074982,0.54,205.07,205.03,13.59559401]
[1756835075277,0.06,205.09,205.08,39.73775558]
[1756835075588,0.06,205.09,205.08,53.5801417]
[1756835075887,0.06,205.09,205.08,55.53360054]
[1756835077273,0.06,205.09,205.08,48.70399581]
[1756835078777,0.06,205.09,205.08,53.5801417]
[1756835079070,0.06,205.09,205.08,48.70399581]
[1756835079657,0.06,205.09,205.08,63.53551763]
[1756835080057,0.06,205.09,205.08,55.53360054]
[1756835080251,0.06,205.09,205.08,143.23551763]
[1756835080469,0.06,205.12,205.11,39.59559401]
[1756835080672,0.06,205.12,205.11,47.73967267]
[1756835080976,0.06,205.12,205.11,53.29510536]
[1756835081150,0.06,205.12,205.11,45.29318827]
[1756835081350,0.06,205.12,205.11,53.29510536]
[1756835081954,0.06,205.12,205.11,53.5794285]
[1756835083861,0.06,205.12,205.11,40.02207872]
[1756835084076,0.06,205.12,205.11,53.5494285]
[1756835084780,0.06,205.12,205.11,48.67399581]
[1756835084976,0.06,205.12,205.11,53.5494285]
[1756835086385,0.06,205.12,205.11,48.02399581]
[1756835086586,0.06,205.12,205.11,47.5975111]
[1756835086758,0.06,205.12,205.07,5.61392043]
[1756835086759,0.6,205.12,205.07,5.61392043]
[1756835086963,0.54,205.11,205.08,13.59559401]
[1756835088064,5.41550252,205.11,205.08,13.59559401]
[1756835088257,8.54191709,205.1,205.06,13.59559401]
[1756835088460,8.54191709,205.1,205.03,113.70191709]
[1756835088461,8.54191709,205.09,205.04,13.59559401]
[1756835088678,0.54,205.08,205.04,21.5975111]
[1756835088894,0.54,205.08,205.01,0.68]
[1756835088895,0.54,205.07,205.01,0.03]
[1756835089179,4.8768593,205.05,205.01,0.03]
[1756835089385,5.4168593,205.05,205.01,0.03]
[1756835089569,5.4168593,205.05,205.01,8.03191709]
[1756835089882,0.54,205.08,205.04,8.00191709]
[1756835090179,0.54,205.07,205.03,8.00191709]
[1756835090360,0.54,205.07,205.01,39.62559401]
[1756835090559,8.00191709,205.06,205.01,0.03]
[1756835090758,8.00191709,205.04,205.01,0.03]
[1756835091278,5.41756429,205.03,205.01,0.03]
[1756835091479,0.54,205.03,205.01,0.03]
[1756835091857,8.54191709,205.02,205.01,0.03]
[1756835093364,13.41949,205.02,205.01,0.03]
[1756835093761,5.41757291,205.02,205.01,0.03]
[1756835094487,12.19106668,205.07,205.01,0.03]
[1756835094488,8.00191709,205.04,205.01,0.03]
[1756835094659,48.04191709,205.04,205.01,0.03]
[1756835094856,0.54,205.03,205.01,0.03]
[1756835095066,8.54191709,205.03,205.01,0.03]
[1756835095473,4.87757291,205.02,205.01,0.03]
[1756835095670,4.87757291,205.02,204.98,12.88894679]
[1756835095983,4.87757291,205.02,204.98,8.00191709]
[1756835097379,0.54,205.01,204.96,8.00191709]
[1756835097577,13.41993156,205.01,204.96,8.00191709]
[1756835097768,40.04,205.03,204.99,21.5975111]
[1756835098367,0.54,205.06,205.01,8.00191709]
[1756835098578,48.04191709,205.05,205.0,8.65191709]
[1756835098878,48.58191709,205.05,205.0,8.00191709]
[1756835099191,26.0,205.08,204.99,13.59559401]
[1756835099192,12.87853856,205.06,205.01,8.65191709]
[1756835099401,40.04,205.05,205.01,8.65191709]
[1756835099696,44.91699519,205.05,205.01,8.65191709]
[1756835099898,4.87642295,205.07,205.01,88.35191709]
[1756835100087,40.04,205.05,205.02,8.00191709]
[1756835100266,4.87642295,205.07,205.04,8.00191709]
[1756835100461,40.04,205.06,205.03,8.00191709]
[1756835100775,40.04,205.06,205.02,21.5975111]
[1756835100976,40.04,205.06,205.02,22.2475111]
[1756835101185,40.04,205.06,205.02,14.24559401]
[1756835101392,40.04,205.06,205.02,13.59559401]
[1756835101569,4.8768593,205.05,205.02,21.5975111]
[1756835101777,40.04,205.08,205.04,21.5975111]
[1756835102097,26.06,205.14,205.08,13.59559401]
[1756835102098,40.1,205.12,205.08,13.59559401]
[1756835102285,0.06,205.12,205.1,8.00191709]
[1756835102482,40.1,205.12,205.09,8.00191709]
[1756835102894,0.06,205.12,205.11,8.00191709]
[1756835103197,0.06,205.12,205.1,8.00191709]
[1756835103375,0.06,205.12,205.1,21.5975111]
[1756835103897,0.06,205.12,205.11,8.65191709]
[1756835104590,0.06,205.12,205.11,22.38967267]
[1756835105778,0.06,205.12,205.11,27.5494285]
[1756835106595,0.06,205.12,205.11,31.06327454]
[1756835106796,0.06,205.14,205.13,21.73967267]
[1756835106980,0.06,205.14,205.13,25.25351871]
[1756835107181,0.06,205.14,205.13,26.18784185]
[1756835107496,0.2,205.19,205.13,26.18784185]
[1756835107497,0.2,205.19,205.14,0.14216157]
[1756835107703,0.2,205.19,205.17,52.89800273]
[1756835108004,0.2,205.19,205.17,53.54800273]
[1756835108571,0.2,205.19,205.17,62.03732051]
[1756835108773,0.06,205.21,205.19,14.02207872]
[1756835108985,0.06,205.21,205.19,22.02399581]
[1756835109190,0.06,205.21,205.19,22.67399581]
[1756835109698,0.06,205.21,205.19,36.03679792]
[1756835109994,0.06,205.21,205.19,35.54944474]
[1756835110203,0.06,205.21,205.19,36.03679792]
[1756835110691,0.06,205.21,205.19,16.62429815]
[1756835110894,0.06,205.21,205.19,13.59559401]
[1756835111096,0.06,205.21,205.19,8.00191709]
[1756835111295,0.06,205.21,205.19,8.14407866]
[1756835111474,0.06,205.21,205.19,8.86407866]
[1756835111673,0.06,205.21,205.19,0.14216157]
[1756835111878,0.06,205.21,205.19,34.14407866]
[1756835113176,0.06,205.21,205.19,34.86407866]
[1756835113376,0.06,205.21,205.19,34.14407866]
[1756835113599,0.06,205.21,205.19,39.59559401]
[1756835113780,0.06,205.21,205.19,47.73967267]
[1756835114676,0.06,205.21,205.19,48.45967267]
[1756835115106,0.06,205.21,205.19,47.73967267]
[1756835115606,0.06,205.21,205.19,48.45967267]
[1756835115803,0.06,205.21,205.19,39.73775558]
[1756835116011,0.06,205.21,205.19,47.73967267]
[1756835117291,13.61521143,205.2,205.11,0.72]
[1756835117504,13.61521143,205.2,205.08,0.72]
[1756835117505,8.00191709,205.16,205.08,0.72]
[1756835117688,8.00191709,205.15,205.09,8.00191709]
[1756835118014,8.54191709,205.15,205.1,13.59559401]
[1756835118201,8.00191709,205.15,205.11,0.14216157]
[1756835118699,0.54,205.15,205.12,13.59559401]
[1756835119007,17.2565302,205.2,205.14,21.5975111]
[1756835119008,45.05329434,205.2,205.14,21.5975111]
[1756835119310,40.18,205.2,205.17,8.00191709]
[1756835119524,0.2,205.2,205.17,8.00191709]
[1756835119716,8.00191709,205.18,205.12,0.14216157]
[1756835120007,0.54,205.17,205.1,13.59559401]
[1756835120205,0.54,205.17,205.12,13.59559401]
[1756835120517,8.54191709,205.17,205.12,21.5975111]
[1756835120700,0.54,205.16,205.12,21.5975111]
[1756835121014,5.6133555,205.2,205.13,8.00191709]
[1756835121201,5.6133555,205.2,205.12,14.31559401]
[1756835121202,4.87376937,205.18,205.14,8.00191709]
[1756835122114,40.18,205.2,205.16,8.00191709]
[1756835122286,45.05344553,205.2,205.16,8.00191709]
[1756835122904,0.54,205.19,205.14,8.00191709]
[1756835123097,0.54,205.18,205.14,13.59559401]
[1756835123413,0.54,205.18,205.13,21.5975111]
[1756835123599,47.98191709,205.19,205.14,8.00191709]
[1756835123916,0.54,205.18,205.13,21.5975111]
[1756835124085,0.54,205.17,205.13,13.59559401]
[1756835124288,8.54191709,205.16,205.12,26.0]
[1756835124726,0.54,205.15,205.11,13.73775558]
[1756835124890,0.54,205.17,205.11,13.59559401]
[1756835125097,8.00191709,205.14,205.08,8.00191709]
[1756835125304,12.87687443,205.13,205.06,13.59559401]
[1756835125516,12.87687443,205.13,205.08,13.59559401]
[1756835125827,13.41687443,205.13,205.08,13.59559401]
[1756835126609,13.41687443,205.13,205.07,8.00191709]
[1756835126794,39.96,205.12,205.07,8.00191709]
[1756835127513,8.00191709,205.16,205.11,8.00191709]
[1756835127707,39.96,205.15,205.12,8.00191709]
[1756835127906,39.96,205.15,205.11,13.59559401]
[1756835128111,39.96,205.15,205.12,8.00191709]
[1756835128290,0.54,205.17,205.12,8.00191709]
[1756835128489,39.96,205.16,205.14,8.00191709]
[1756835128694,39.96,205.16,205.13,8.00191709]
[1756835129312,44.83436565,205.16,205.12,8.00191709]
[1756835129518,8.54191709,205.15,205.1,13.59559401]
[1756835129713,0.54,205.14,205.1,13.59559401]
[1756835129900,4.87436565,205.16,205.11,8.00191709]
[1756835130106,39.96,205.13,205.11,8.00191709]
[1756835130421,39.96,205.14,205.12,8.00191709]
[1756835130627,39.96,205.15,205.12,8.00191709]
[1756835131416,44.83458142,205.15,205.11,8.00191709]
[1756835131719,44.83458142,205.15,205.1,13.59559401]
[1756835131919,44.83458142,205.15,205.1,21.5975111]
[1756835132115,44.83458142,205.15,205.11,8.00191709]
[1756835132415,45.37458142,205.15,205.1,13.59559401]
[1756835132630,45.37458142,205.15,205.1,21.5975111]
[1756835133029,8.00191709,205.11,205.05,8.00191709]
[1756835133333,8.00191709,205.11,205.05,13.59559401]
[1756835133334,52.83758749,205.1,205.05,13.59559401]
[1756835133627,8.00191709,205.09,205.04,8.00191709]
[1756835133934,44.8356704,205.1,205.04,22.3175111]
[1756835134106,52.83758749,205.1,205.04,21.5975111]
[1756835134705,44.8356704,205.1,205.05,8.00191709]
[1756835134920,4.8754197,205.12,205.07,8.00191709]
[1756835135124,39.96,205.11,205.08,8.00191709]
[1756835135428,39.96,205.1,205.08,8.00191709]
[1756835135731,39.96,205.1,205.07,12.07245888]
[1756835135891,39.96,205.1,205.07,0.72]
[1756835136094,39.96,205.1,205.08,12.07245888]
[1756835136630,39.96,205.1,205.07,12.07245888]
[1756835137003,0.54,205.09,205.04,12.07245888]
[1756835137204,56.90815184,205.1,205.05,26.38805289]
[1756835137525,4.87569296,205.1,205.06,12.07245888]
[1756835137720,4.87543917,205.11,205.07,12.07245888]
[1756835138025,26.0,205.15,205.09,12.07245888]
[1756835138210,52.03245888,205.14,205.09,12.07245888]
[1756835138408,12.07245888,205.12,205.07,12.07245888]
[1756835138610,0.54,205.13,205.07,12.79245888]
[1756835138808,12.07245888,205.13,205.08,12.07245888]
[1756835139123,39.96,205.12,205.08,12.07245888]
[1756835139293,44.83524119,205.12,205.07,12.79245888]
[1756835139496,57.44770007,205.12,205.07,12.07245888]
[1756835139706,12.61245888,205.11,205.06,12.07245888]
[1756835140108,0.54,205.1,205.05,12.21462045]
[1756835140515,56.90770007,205.12,205.06,12.07245888]
[1756835140718,57.44770007,205.12,205.06,12.07245888]
[1756835140927,45.37524119,205.12,205.07,12.07245888]
[1756835141303,39.94,205.11,205.1,12.07245888]
[1756835141900,4.8747197,205.14,205.1,12.07245888]
[1756835142400,39.94,205.13,205.12,12.07245888]
[1756835142602,39.94,205.13,205.1,12.07245888]
[1756835142998,0.54,205.12,205.07,38.07245888]
[1756835143211,4.87543269,205.11,205.07,12.07245888]
[1756835143420,4.87543269,205.11,205.06,12.07245888]
[1756835143725,4.87543269,205.11,205.07,12.07245888]
[1756835144219,12.61245888,205.1,205.04,12.07245888]
[1756835144420,12.61245888,205.1,205.08,0.03]
[1756835144421,39.94,205.09,205.08,0.03]
[1756835144609,40.48,205.09,205.08,0.03]
[1756835145313,45.35590813,205.09,205.08,0.03]
[1756835145620,24.25945541,205.14,205.08,12.10245888]
[1756835145797,44.81495734,205.13,205.09,12.07245888]
[1756835146005,4.87495734,205.13,205.09,12.07245888]
[1756835146203,39.94,205.12,205.09,12.07245888]
[1756835146531,39.94,205.12,205.08,0.03]
[1756835146723,39.94,205.12,205.08,12.10245888]
[1756835147100,39.94,205.12,205.08,0.03]
[1756835147407,4.87543269,205.11,205.08,0.03]
[1756835147606,4.87543269,205.11,205.08,12.10245888]
[1756835147814,0.54,205.11,205.08,0.03]
[1756835148027,39.94,205.1,205.08,12.10245888]
[1756835148723,4.87530407,205.12,205.09,12.07245888]
[1756835148921,39.94,205.11,205.09,12.07245888]
[1756835149129,4.87530407,205.12,205.09,12.07245888]
[1756835149420,39.94,205.11,205.1,0.68]
[1756835149626,39.94,205.11,205.08,19.18169659]
[1756835149801,39.94,205.11,205.09,0.68]
[1756835150524,39.94,205.11,205.1,12.07245888]
[1756835150908,39.94,205.11,205.09,12.07245888]
[1756835151129,39.94,205.11,205.08,12.10245888]
[1756835151336,4.8756704,205.1,205.08,12.10245888]
[1756835151929,4.8756704,205.1,205.09,12.07245888]
[1756835152130,44.81549609,205.11,205.09,12.07245888]
[1756835152326,44.81549609,205.11,205.08,0.03]
[1756835152523,44.81549609,205.11,205.09,12.07245888]
[1756835152732,26.0,205.17,205.1,12.75245888]
[1756835152910,39.92,205.16,205.11,12.07245888]
[1756835153109,39.92,205.16,205.12,12.07245888]
[1756835153711,4.87448208,205.15,205.12,12.07245888]
[1756835154220,4.87448208,205.15,205.11,12.07245888]
[1756835154746,4.87448208,205.15,205.09,5.55589245]
[1756835154747,39.92,205.14,205.09,5.55589245]
[1756835154918,4.87448208,205.15,205.11,12.07245888]
[1756835155239,39.92,205.13,205.11,12.07245888]
[1756835155443,4.87448208,205.15,205.09,13.59559401]
[1756835155633,4.87448208,205.15,205.1,12.07245888]
[1756835155816,39.92,205.14,205.1,12.07245888]
[1756835156229,4.87448208,205.15,205.1,12.07245888]
[1756835156538,39.92,205.14,205.1,12.07245888]
[1756835156735,39.92,205.13,205.1,12.07245888]
[1756835156937,39.92,205.13,205.09,12.07245888]
[1756835157139,0.54,205.12,205.08,0.03]
[1756835157346,51.99245888,205.13,205.08,0.03]
[1756835157347,12.61245888,205.11,205.08,0.03]
[1756835157718,4.8756704,205.1,205.08,0.03]
[1756835157918,39.9,205.09,205.08,0.03]
[1756835158451,40.44,205.09,205.08,0.03]
[1756835158618,52.51245888,205.09,205.08,0.03]
[1756835159038,39.9,205.09,205.08,0.03]
[1756835159554,16.94812928,205.1,205.08,0.03]
[1756835159749,44.77590813,205.09,205.08,0.03]
[1756835160123,39.9,205.09,205.08,0.03]
[1756835160454,4.87448208,205.15,205.08,12.78245888]
[1756835160631,39.9,205.14,205.12,12.07245888]
[1756835161336,39.9,205.14,205.11,12.07245888]
[1756835161720,4.87495734,205.13,205.11,12.07245888]
[1756835161921,0.54,205.12,205.08,0.03]
[1756835162134,39.9,205.11,205.09,0.03]
[1756835162333,12.07245888,205.1,205.09,0.03]
[1756835162548,12.61245888,205.1,205.09,0.03]
[1756835162923,39.9,205.1,205.09,0.03]
[1756835163123,52.51245888,205.1,205.09,0.03]
[1756835163534,39.9,205.1,205.09,0.03]
[1756835163732,44.7756704,205.1,205.09,0.03]
[1756835164530,26.0,205.13,205.09,0.03]
[1756835164738,39.9,205.12,205.09,0.03]
[1756835164936,4.87501361,205.13,205.1,12.07245888]
[1756835165252,39.9,205.11,205.09,12.10245888]
[1756835165570,12.24392079,205.19,205.1,12.75245888]
[1756835165859,4.87376937,205.18,205.14,12.07245888]
[1756835166050,39.9,205.17,205.14,12.07245888]
[1756835166249,39.9,205.17,205.13,12.07245888]
[1756835166752,4.87376937,205.18,205.14,12.07245888]
[1756835166964,4.87376937,205.18,205.14,12.75245888]
[1756835167137,39.88,205.17,205.14,12.75245888]
[1756835167333,39.88,205.17,205.13,12.07245888]
[1756835168460,51.95245888,205.17,205.12,12.75245888]
[1756835168649,39.88,205.17,205.13,12.75245888]
[1756835168958,4.87424449,205.16,205.13,12.75245888]
[1756835169336,0.06,205.19,205.14,12.75245888]
[1756835169555,0.06,205.19,205.18,12.07245888]
[1756835169763,39.94,205.19,205.18,12.07245888]
[1756835170140,39.94,205.19,205.17,12.07245888]
[1756835170442,39.94,205.19,205.18,12.75245888]
[1756835172561,39.94,205.19,205.14,0.68]
[1756835172733,39.94,205.19,205.15,12.75245888]
[1756835172934,39.94,205.19,205.16,12.07245888]
[1756835173236,39.86,205.18,205.16,12.07245888]
[1756835173444,39.86,205.18,205.16,12.75245888]
[1756835173640,39.86,205.17,205.16,12.07245888]
[1756835173856,4.93359508,205.19,205.16,12.07245888]
[1756835174053,39.86,205.17,205.16,12.07245888]
[1756835174248,39.86,205.17,205.16,12.75245888]
[1756835175566,39.86,205.17,205.16,12.07245888]
[1756835176059,56.8064658,205.17,205.12,12.07245888]
[1756835176260,56.8064658,205.17,205.11,13.59559401]
[1756835176447,57.3464658,205.17,205.12,12.07245888]
[1756835176961,57.3464658,205.17,205.11,13.59559401]
[1756835176962,56.8064658,205.17,205.11,25.66805289]
[1756835177274,39.86,205.16,205.13,12.07245888]
[1756835177444,44.73430574,205.16,205.13,12.07245888]
[1756835177952,44.73430574,205.16,205.12,0.68]
[1756835177953,44.73430574,205.16,205.12,12.75245888]
[1756835178338,39.86,205.16,205.12,12.75245888]
[1756835178538,39.86,205.15,205.14,12.07245888]
[1756835178761,17.0060337,205.19,205.14,12.75245888]
[1756835178762,0.06,205.19,205.14,12.75245888]
[1756835179078,0.06,205.19,205.15,0.68]
[1756835179367,39.84,205.18,205.17,12.07245888]
[1756835180354,0.06,205.19,205.17,12.75245888]
[1756835180553,39.84,205.18,205.16,12.07245888]
[1756835181455,44.71393794,205.18,205.16,12.10245888]
[1756835182266,39.84,205.18,205.16,12.78245888]
[1756835182458,44.71381452,205.18,205.16,12.78245888]
[1756835182655,44.71381452,205.18,205.16,12.10245888]
[1756835183047,44.71381452,205.18,205.16,0.03]
[1756835184147,12.61245888,205.17,205.16,0.03]
[1756835185665,17.4864658,205.17,205.16,0.03]
[1756835186460,17.4864658,205.17,205.16,1e-08]
[1756835186668,0.28432314,205.13,205.09,0.03]
[1756835186963,40.36,205.12,205.09,0.03]
[1756835187173,12.07245888,205.1,205.09,0.03]
[1756835187671,4.8756704,205.1,205.09,0.03]
[1756835187974,16.94812928,205.1,205.09,0.03]
[1756835188270,44.6956704,205.1,205.09,0.03]
[1756835188778,56.76812928,205.1,205.09,0.03]
[1756835189273,57.30812928,205.1,205.09,0.03]
[1756835189573,56.76812928,205.1,205.09,0.03]
[1756835190153,57.30812928,205.1,205.06,0.03]
[1756835190463,12.61245888,205.09,205.06,0.03]
[1756835191551,39.82,205.09,205.06,0.03]
[1756835191867,57.30836701,205.09,205.06,0.03]
[1756835192073,56.76836701,205.09,205.06,0.03]
[1756835193375,16.94836701,205.09,205.06,0.03]
[1756835193868,56.76836701,205.09,205.06,0.03]
[1756835194452,56.76836701,205.09,205.06,1e-08]
[1756835194453,0.28432314,205.08,205.06,1e-08]
[1756835194650,65.8,205.07,205.05,1e-08]
[1756835194854,12.07245888,205.06,205.05,1e-08]
[1756835195077,12.61245888,205.06,205.05,1e-08]
[1756835195857,17.48908035,205.06,205.05,1e-08]
[1756835196275,44.67662147,205.06,205.05,1e-08]
[1756835196575,4.87662147,205.06,205.05,1e-08]
[1756835196777,44.67662147,205.06,205.05,0.68000001]
[1756835196976,44.67662147,205.06,205.05,1e-08]
[1756835198685,52.68203249,205.06,205.05,1e-08]
[1756835200175,39.8,205.06,205.05,0.68000001]
[1756835200364,47.80541102,205.06,205.05,0.68000001]
[1756835200791,39.8,205.06,205.05,0.68000001]
[1756835201290,39.8,205.06,205.05,1e-08]
[1756835201488,39.8,205.06,205.05,0.68000001]
[1756835202073,44.67662147,205.06,205.05,0.68000001]
[1756835202589,4.93611733,205.09,205.05,3.88227253]
[1756835202773,39.8,205.08,205.06,0.68]
[1756835202972,39.8,205.08,205.06,3.88227252]
[1756835203294,39.78,205.07,205.06,3.20227252]
[1756835203670,39.78,205.07,205.06,3.88227252]
[1756835204200,39.78,205.07,205.06,0.68]
[1756835204867,44.65638367,205.07,205.06,0.68]
[1756835205071,47.85865619,205.07,205.05,1e-08]
[1756835205272,8.07865619,205.07,205.05,1e-08]
[1756835205472,39.78,205.06,205.05,0.68000001]
[1756835205695,39.78,205.06,205.05,1e-08]
[1756835206193,39.78,205.06,205.05,0.68000001]
[1756835207787,44.65662147,205.06,205.05,0.68000001]
[1756835208180,47.85889399,205.06,205.05,0.68000001]
[1756835208496,39.78,205.06,205.05,0.68000001]
[1756835211806,39.78,205.06,205.05,1e-08]
[1756835211983,47.85889399,205.06,205.05,1e-08]
[1756835215811,48.39889399,205.06,205.05,1e-08]
[1756835216482,48.45889399,205.06,205.05,1e-08]
[1756835217293,48.45889399,205.06,205.03,0.03]
[1756835217500,3.20227252,205.04,205.03,0.03]
[1756835217804,42.94227252,205.04,205.03,0.03]
[1756835217997,61.45278289,205.04,205.01,0.03]
[1756835218195,26.0,205.01,204.96,0.71]
[1756835218402,17.06984002,205.04,204.96,0.71]
[1756835218705,3.20227252,204.99,204.96,0.71]
[1756835218882,17.60984002,205.04,204.96,0.71]
[1756835218883,3.20227252,204.98,204.97,0.68]
[1756835219079,42.94227252,204.98,204.97,0.68]
[1756835220297,39.74,204.98,204.97,0.68]
[1756835220490,4.90965836,205.04,204.98,13.73775558]
[1756835220691,3.26227252,205.06,205.0,3.20227252]
[1756835220894,3.26227252,205.06,204.98,13.73775558]
[1756835220895,31.72,205.05,205.02,3.20227252]
[1756835221093,31.72,205.05,205.03,0.68]
[1756835221294,31.72,205.05,205.01,26.0]
[1756835221295,31.72,205.05,205.04,0.68]
[1756835221498,39.79919358,205.05,205.01,0.68]
[1756835221821,39.79919358,205.05,204.99,0.68]
[1756835221822,3.20227252,205.03,204.99,0.68]
[1756835221990,36.59692106,205.05,204.99,0.68]
[1756835221991,42.94227252,205.02,204.99,0.68]
[1756835222193,3.20227252,205.02,204.99,0.68]
[1756835222401,42.94227252,205.01,204.97,14.27559401]
[1756835222590,4.87692106,205.05,204.98,0.68]
[1756835222591,39.74,205.0,204.98,0.68]
[1756835222786,39.74,204.99,204.97,13.59559401]
[1756835223319,39.74,204.99,204.98,0.68]
[1756835223902,39.74,204.99,204.96,0.03]
[1756835224221,3.20227252,204.98,204.96,0.03]
[1756835224508,3.20227252,204.97,204.96,0.03]
[1756835225318,3.74227252,204.97,204.96,0.03]
[1756835225698,34.62103526,204.97,204.96,0.03]
[1756835226991,0.14216157,204.96,204.93,0.03]
[1756835227207,4.87876274,204.97,204.93,0.03]
[1756835227408,3.20227252,204.94,204.93,0.03]
[1756835227696,42.92227252,204.94,204.93,0.03]
[1756835228398,43.46227252,204.94,204.93,0.03]
[1756835228721,43.46227252,204.94,204.88,0.03]
[1756835228722,26.0,204.91,204.88,0.03]
[1756835228921,3.48659566,204.89,204.88,0.03]
[1756835229097,3.20227252,204.89,204.88,0.03]
[1756835229416,45.38898036,204.89,204.88,0.03]
[1756835229606,5.66898036,204.89,204.88,0.03]
[1756835229790,1.95670784,204.89,204.88,0.03]
[1756835229995,39.72,204.89,204.88,0.71]
[1756835230222,5.15859757,204.91,204.88,0.71]
[1756835230404,42.92227252,204.9,204.88,0.71]
[1756835230604,3.20227252,204.9,204.88,0.71]
[1756835230927,39.72,204.89,204.88,0.71]
[1756835231625,42.92227252,204.89,204.88,0.03]
[1756835231810,47.80294019,204.89,204.88,0.03]
[1756835232406,4.98181428,204.93,204.88,0.03]
[1756835232611,39.72,204.92,204.88,0.69]
[1756835232909,3.30227252,204.95,204.91,3.20227252]
[1756835233213,39.72,204.94,204.92,0.66]
[1756835233403,3.20227252,204.98,204.92,3.86227252]
[1756835233599,42.92227252,204.97,204.93,0.66]
[1756835234017,39.72,204.96,204.94,0.66]